Cogmind - Beta 12 @@@ ROGUE MODE // 2023.04.24 @ 18:12:07 Player: Kennedy Result: Destroyed by L-31 Rogue with Katana Performance ------------- Evolutions (1) 500 Regions Visited (2) 400 Robots Destroyed (13) 65 Value Destroyed (422) 422 Prototype IDs (0) 0 Alien Tech Used (0) 0 Bonus (0) 0 TOTAL SCORE: 1387 Bonus ------- None Cogmind --------- Core Integrity 0/400 Matter 300/300 Energy 100/100 System Corruption 0% Temperature Cool (0) Movement Core (1350) Ox26 Location -9/Materials Parts ------- > --- POWER (2) -------- (None) > --- PROPULSION (2) --- (None) > --- UTILITY (3) ------ Huge Storage Unit > --- WEAPON (2) ------- (None) > --- INVENTORY (25) --- Ion Engine Tractor Beam Tractor Beam Small Laser Peak State ------------ > --- POWER ------------ Ion Engine Light Ion Engine > --- PROPULSION ------- Wheel Wheel > --- UTILITY ---------- Huge Storage Unit Terrain Scanner Medium Armor Plating > --- WEAPON ----------- Medium Laser Small Laser > --- INVENTORY -------- Ion Engine Tractor Beam Tractor Beam Beam Cannon Grenade Launcher [Rating: 10] Favorites ----------- Power Light Ion Engine Engine Light Ion Engine Propulsion Wheel Wheel Wheel Hover Unit Backup Propulsion I Utility Terrain Scanner Device Terrain Scanner Storage Huge Storage Unit Protection Medium Armor Plating Weapon Small Laser Energy Gun Small Laser Energy Cannon Beam Cannon Launcher Grenade Launcher Build | -11 -10 -9 ------- Run | Jun Mat Mat Slots Evolved 2 | . . 2 Power 1 | . . 1 Propulsion . | . . . Utility 1 | . . 1 Weapon . | . . . Parts Attached 20 | 9 3 8 Power 5 | 3 . 2 Engine 5 | 3 . 2 Core . | . . . Reactor . | . . . Propulsion 5 | 2 1 2 Treads . | . . . Leg . | . . . Wheel 5 | 2 1 2 Hover . | . . . Flight . | . . . Utility 5 | 2 2 1 Device 3 | 2 1 . Storage 1 | . 1 . Processor . | . . . Hackware . | . . . Protection 1 | . . 1 Artifact . | . . . Weapon 5 | 2 . 3 Energy Gun 2 | 2 . . Energy Cannon 1 | . . 1 Ballistic Gun . | . . . Ballistic Cannon . | . . . Launcher 2 | . . 2 Special Weapon . | . . . Impact Weapon . | . . . Slashing Weapon . | . . . Piercing Weapon . | . . . Special Melee Weapon . | . . . Unidentified Prototypes . | . . . Parts Lost 8 | . . 8 Power 2 | . . 2 Propulsion 2 | . . 2 Utility 2 | . . 2 Weapon 2 | . . 2 Highest Loss Streak 7 | . . 7 To Critical Strikes . | . . . Average Slot Usage (%) 88 | . 95 77 Engine 13 | . 14 11 Wheel 23 | . 28 15 Hover 1 | . . 3 Device 13 | . 15 10 Storage 9 | . 8 11 Protection 3 | . . 8 Energy Gun 23 | . 28 16 Naked Turns . | . . . Heaviest Build 95 | 7 87 95 Greatest Support 20 | 20 20 20 Greatest Overweight (x) 26 | . 4 26 Average Overweight (x) 1 | . 1 5 Largest Inventory Capacity 25 | 5 25 25 Average Capacity 18 | 5 17 25 Most Carried 7 | 2 6 7 Average Carried 4 | . 4 5 Final Capacity 25 | 5 25 25 Final Carried 6 | 1 6 4 Class Distribution -------------------- 100% | Mutant Dominant Class ---------------- Mutant | -10/Materials Mutant | -9/Materials Resources | -11 -10 -9 ----------- Run | Jun Mat Mat Matter Collected 391 | 270 40 81 Remotely . | . . . Salvage Created 526 | 31 205 290 Parts 28 | 3 10 15 Haulers Intercepted . | . . . Recyclers Shooed 1 | . 1 . Parts Field Recycled . | . . . Retrieved Matter . | . . . Parts Self-Destructed . | . . . Prevented . | . . . Kills | -11 -10 -9 ------- Run | Jun Mat Mat Combat Hostiles Destroyed 11 | 1 4 6 Guns 8 | 1 4 3 AOE 2 | . . 2 Classes Destroyed 5 | 1 1 3 Recycler 1 | . . 1 Watcher 1 | . 1 . Swarmer 1 | . . 1 Grunt 9 | 1 4 4 Sentry 1 | . . 1 Best Kill Streak 4 | 1 2 4 Combat Bots Only 3 | 1 2 3 Max Kills in Single Turn 3 | 1 1 3 Gunslinging . | . . . Exploded 2 | . . 2 Melee . | . . . Uniques/NPCs Destroyed . | . . . Combat | -11 -10 -9 -------- Run | Jun Mat Mat Damage Taken 1169 | 24 170 975 Core 450 | 12 26 412 Absorbed by Shields . | . . . Regen/Repaired (Parts) 16 | . . 16 Core Remaining (%) 89 | 95 84 . Volleys Fired 30 | 5 15 10 Largest 2 | 2 2 2 Hottest 90 | 90 90 90 Shots Fired 57 | 10 30 17 Gun 55 | 10 30 15 Cannon 1 | . . 1 Launcher 1 | . . 1 Special . | . . . Kinetic . | . . . Thermal 56 | 10 30 16 Explosive 1 | . . 1 Electromagnetic . | . . . Robot Hit Streak 10 | 3 7 10 Robot Miss Streak 2 | 2 2 2 Penetration Max . | . . . Secondary Targets 1 | . 1 . Max Gunslinging Chain 1 | . 1 . Shots Hit Robots 40 | 5 22 13 Core Hits 23 | 2 11 10 Critical Kills . | . . . Critical Parts Destroyed . | . . . Critical Strikes 4 | . 3 1 Burn 4 | . 3 1 Melee Attacks . | . . . Impact . | . . . Slashing . | . . . Piercing . | . . . Sneak Attacks . | . . . Combat Hostiles . | . . . Follow-up Attacks . | . . . Damage Inflicted 664 | 62 281 321 Guns 472 | 62 281 129 Cannons 18 | . . 18 Explosions 165 | . . 165 Melee . | . . . Ramming 9 | . . 9 Kinetic . | . . . Thermal 490 | 62 281 147 Explosive 165 | . . 165 Electromagnetic . | . . . Impact . | . . . Slashing . | . . . Piercing . | . . . Highest Corruption . | . . . Average Corruption . | . . . Corruption Purged . | . . . Corruption Blocked . | . . . Overload Shots . | . . . Overflow Damage 26 | . . 26 Projectiles 8 | . . 8 Explosions 18 | . . 18 Melee . | . . . Knockbacks . | . . . Impact . | . . . Kinetic . | . . . Secondary . | . . . Self-Inflicted Damage 36 | . . 36 Shots 1 | . . 1 Rammed 2 | . . 2 Targets Rammed 2 | . . 2 Kicked . | . . . Crushed . | . . . Highest Temperature 285 | 102 264 285 Average Temperature 104 | 45 110 127 Received Heat Transfer 330 | 12 99 219 Siege Activations . | . . . Robots Corrupted . | . . . Combat Hostiles . | . . . Parts Fried . | . . . Impact Corruptions . | . . . Robots Melted 1 | . . 1 Combat Hostiles 1 | . . 1 Parts Melted 3 | . 1 2 Heat Transferred 1573 | 161 966 446 Parts Sabotaged . | . . . Parts Stolen . | . . . Parts Stripped . | . . . Power Chain Reactions . | . . . Missiles Intercepted . | . . . Alert | -11 -10 -9 ------- Run | Jun Mat Mat Peak Influence 165 | 20 165 159 Initial 69 | . 13 69 Average 79 | 5 71 118 Maximum Alert Level . | . . . Low Security (%) 100 | 100 100 100 Level 1 . | . . . Level 2 . | . . . Level 3 . | . . . Level 4 . | . . . Level 5 . | . . . High Security . | . . . Max Security . | . . . Squads Dispatched 1 | . 1 . Investigation . | . . . Extermination . | . . . Reinforcement 1 | . 1 . Assault . | . . . Garrison . | . . . Intercept . | . . . Searches Triggered . | . . . Construction Impeded . | . . . Haulers Reinforced . | . . . Active Scanning Responses . | . . . Cargo Convoy Interrupts . | . . . Stealth | -11 -10 -9 --------- Run | Jun Mat Mat Distress Signals 1 | . . 1 Communications Jammed . | . . . Distress Signals . | . . . Times Spotted 18 | 1 7 10 Peak Tracking Total 5 | 1 3 5 Tactical Retreats . | . . . Traps | -11 -10 -9 ------- Run | Jun Mat Mat Traps Triggered . | . . . Indirectly . | . . . Trap Hack Attempts . | . . . Triggered . | . . . Disarmed . | . . . Reprogrammed . | . . . Reused . | . . . Traps Extracted . | . . . Installed . | . . . Triggered . | . . . Machines | -11 -10 -9 ---------- Run | Jun Mat Mat Machines Disabled . | . . . Max in Single Turn . | . . . Machines Repaired . | . . . Machines Sabotaged . | . . . Overloaded Fab Kills . | . . . Hacking | -11 -10 -9 --------- Run | Jun Mat Mat Machines Accessed 4 | . 3 1 Terminals 2 | . 2 . Fabricators . | . . . Repair Stations 1 | . . 1 Recycling Units 1 | . 1 . Scanalyzers . | . . . Garrison Access . | . . . Total Hacks 10 | . 7 3 Successful 8 | . 5 3 Failed 2 | . 2 . Catastrophic . | . . . Database Lockouts . | . . . Manual . | . . . Terminals 4 | . 4 . Fabricators . | . . . Repair Stations 3 | . . 3 Recycling Units 3 | . 3 . Scanalyzers . | . . . Garrison Access . | . . . Terminal Hacks 3 | . 3 . Alert Level 2 | . 2 . Zone Layout 1 | . 1 . Fabricator Hacks . | . . . Repair Station Hacks 3 | . . 3 Scan Component 1 | . . 1 Repair 1 | . . 1 Refit 1 | . . 1 Recycling Unit Hacks 2 | . 2 . Recycle Component 1 | . 1 . Process 1 | . 1 . Scanalyzer . | . . . Garrison Access Hacks . | . . . Unauthorized Hacks . | . . . Terminals . | . . . Fabricators . | . . . Repair Stations . | . . . Recycling Units . | . . . Scanalyzers . | . . . Garrison Access . | . . . Data Cores Recovered . | . . . Used . | . . . Hacking Detections 3 | . 2 1 Full Trace Events . | . . . Feedback Events . | . . . Feedback Blocked . | . . . Robot Schematics Acquired . | . . . Robots Built . | . . . Authchips . | . . . Time . | . . . Total Robot Build Rating . | . . . Part Schematics Acquired . | . . . Parts Built . | . . . Authchips . | . . . Time . | . . . Total Part Build Rating . | . . . Parts Repaired 1 | . . 1 Time 26 | . . 26 Parts Recycled 1 | . 1 . Recycled Matter 16 | . 16 . Retrieved Matter . | . . . Retrieved Components . | . . . Parts Scanalyzed . | . . . Part Schematics Acquired . | . . . Parts Damaged . | . . . Bothacking | -11 -10 -9 ------------ Run | Jun Mat Mat Used RIF Installer . | . . . Robots Hacked . | . . . Non-combat . | . . . Combat . | . . . Robot Hacks Applied . | . . . Relay Couplers Released . | . . . Fabnet Peak Effective % . | . . . Robots Rewired . | . . . Allies Hacked . | . . . Hacks Repelled . | . . . Allies | -11 -10 -9 -------- Run | Jun Mat Mat Total Allies . | . . . Largest Group . | . . . Highest-Rated Group . | . . . Highest-Rated Ally . | . . . Total Orders . | . . . Ally Attacks . | . . . Total Damage . | . . . Kills . | . . . Allies Corrupted . | . . . Allies Melted . | . . . Intel | -11 -10 -9 ------- Run | Jun Mat Mat Robot Analysis Total . | . . . Derelict Logs Recovered . | . . . Drone Launches . | . . . Drone Recoveries . | . . . Exploration | -11 -10 -9 ------------- Run | Jun Mat Mat Turns Passed 683 | 81 370 232 Spaces Moved 418 | 71 286 61 Core 16 | 15 . 1 Treads . | . . . Legs . | . . . Wheels 397 | 56 286 55 Hover 5 | . . 5 Flight . | . . . Fastest Speed 50 | 50 80 140 Average Speed 121 | 73 104 253 Slowest Speed 1350 | 80 140 1350 Overloaded Moves . | . . . Propulsion Burnouts . | . . . Robots Hopped . | . . . Cave-ins Triggered . | . . . Exploration Rate (%) 19 | 6 46 7 Regions Visited 2 Branch Regions . Pre-discovered Areas . | . . . Known Exits Taken . | . . . Unknown Exits Taken 2 | 1 1 . Scrap Searched . | . . . Spaces Dug . | . . . Terrain Destroyed 8 | . . 8 Melee . | . . . Projectile . | . . . AOE 8 | . . 8 Terrain Rammed . | . . . Walls Destroyed . | . . . Machines Disabled . | . . . Actions | -11 -10 -9 --------- Run | Jun Mat Mat Total 510 | 85 327 98 Wait 27 | . 12 15 Move 416 | 70 285 61 Hop . | . . . Pick Up 9 | . 9 . Fast Attach 10 | 6 1 3 Attach 5 | 1 . 4 Detach 3 | 1 . 2 Swap 5 | 2 2 1 Drop 3 | . 3 . Fire 30 | 5 15 10 Melee . | . . . Ram 2 | . . 2 Kick . | . . . Crush . | . . . Escape Stasis . | . . . Rewire . | . . . Trap . | . . . Miscellaneous . | . . . Route ------- -11/Junkyard -10/Materials -9/Materials History --------- Turn | Location | Event 2 | -11/Junkyard | Met Revision 17 51 | -11/Junkyard | Discovered new exit (range 8) 82 | -11/Junkyard | Entered Materials 308 | -10/Materials | Build established: Mutant 434 | -10/Materials | Discovered new exit (range 12) 452 | -10/Materials | Entered another Materials area 452 | -9/Materials | Evolved 2 slots: Power x1, Utility x1 594 | -9/Materials | Repaired Wheel 657 | -9/Materials | Core integrity fell below 50% 672 | -9/Materials | Lost 7 parts (2p2n1u2w) 680 | -9/Materials | Core integrity fell below 20% 684 | -9/Materials | Destroyed by L-31 Rogue with Katana Last Messages --------------- U-05 Engineer lays Concrete. Acquired 41 matter. U-05 Engineer lays Concrete. K-01 Serf collects debris. U-05 Engineer destroyed. U-05 Engineer builds a Wall. K-01 Serf collects debris. Terrain Scanner destroyed. K-01 Serf collects debris. Slammed into G-34 Mercenary. U-05 Engineer lays Concrete. U-05 Engineer builds a Wall. U-05 Engineer lays Concrete. K-01 Serf collects debris. U-05 Engineer lays Concrete. U-05 Engineer builds a Wall. U-05 Engineer lays Concrete. Broken Wheel severed. K-01 Serf collects debris. U-05 Engineer lays Concrete. Map ----- +----------------------------------------------------+ | ?????????????????????????????????????????????????? | | ???????????????????????????#?#???????????????????? | | ?????????????###############?#???????????????????? | | ?????????????# # #???????"?????????????? | | ?????????#???# # #?????????????????????? | | ?????????????# """ """ # #?????????????????????? | | ?????????????# """ """ + #???? ????????#???????? | | ?????????????# """ """ # ###########???????????? | | ?????????????# # # #???????????? | | ???????#?????# # # #???????????? | | ?????????????# # # """ """ #???????????? | | ??????????#??########### # """ """ #???????????? | | ????????????????#??????# # """ """ ##??????????? | | ???????????????#?#??#??# + #???????????? | | ???????????????#???????# # #???????????? | | ????????????????????#??# # #???????????? | | ?????????????#???##?#?##% ###########???????????? | | ???????????????######## #?###????#???????????? | | ??????????????## % #?#??????????????????? | | ??????????#?#?## #????????????????????? | | ???????????????# #????#??? ???????????? | | ??????????????## #### #??????#?????????????? | | ?????????? ?? ?# ?######u####???????????????????? | | ??????????? # # % ##???#???#?????????????? | | ?????????????? + + rr=g=#?#???#???????????????? | | ????????????? ??? #"""kl@##?#????#??????????????? | | ??????????"?? ?????#"R]*%* #?#????#??????????????? | | ?????????????????? #""" uu #???#?????????????????? | | ??????????#????????# ! #?????????????????????? | | ???????????????? ??#########?????#???????????????? | | ??????????????#??????????????? ???#??????????????? | | ???????????##?#??? ????????? ????????????????????? | | ???????????????#???##?????? ?????#???????????????? | | ?????????????????????????????"???????????????????? | | ?????????????????????????????????????????????????? | | ??????????????????? ????#????????????????????????? | | ????????????????? ???????????????????????????????? | | ?????????????????????????????????????????????????? | | ?????????????????? ??????????????????????????????? | | ?????????????????????????????????????????????????? | | ?????????????????????????????????????????????????? | | ?????????????????????????????????????????????????? | | ?????????????????????????????????????????????????? | | ?????????????????????????????????????????????????? | | ?????????????????????????????????????????????????? | | ?????????????????????????????????????????????????? | | ?????????????????????????????????????????????????? | | ?????????????????????????????????????????????????? | | ?????????????????????????????????????????????????? | | ?????????????????????????????????????????????????? | +----------------------------------------------------+ Best States ------------- Heat Dissipation 35 Energy Generation 15 Energy Capacity 275 Matter Stores 300 Matter Capacity 300 Sight Range 16 Terrain Scan Range 14 Terrain Scan Density 10 Armor Coverage 225 Evasion (%) 50 Item Schematics ----------------- None Robot Schematics ------------------ None Fabricated ------------ Nothing Alien Tech Used ----------------- None Achievements -------------- Crack Shot It's Just You Part-time Mechanic Uninvited Guest Challenges ------------ None Game ------ Seed ThrowingSurveybotNeutralizer Manual? 0 Play Time 00:21:35 Cumulative 1.4 hours Start 2023.04.24 @ 13:28:24 End 2023.04.24 @ 18:12:07 Sessions 3 Manual Loads 0 Difficulty Rogue Special Mode None Game No. 2 Rogue 2 Adventurer 0 Explorer 0 Win Type - Total 0 Types 0/0/0/0/0/0/0/0/0 Lore% 0 Gallery% 2 Achievement% 3 Wizard Run 0 Options --------- ASCII 0 Keyboard 1 Movement Numpad Keybinds 0 Fullscreen 1 Font 18/SmallcapsGlow Map View 76x50 Tactical HUD 0 Map Filters NONE Filters NONE Steam 1 RUN: b8631bf3-f23c-4f25-86f9-6d55afcefe3f